Cogmind - Beta 15 @@@ ROGUE MODE // 2025.06.25 @ 00:30:40 Player: Cracklepappy Result: Destroyed by G-47 Trooper with Particle Gun Performance ------------- Evolutions (0) 0 Regions Visited (2) 400 Robots Destroyed (17) 85 Value Destroyed (316) 316 Prototype IDs (3) 60 Alien Tech Used (0) 0 Bonus (95) 95 TOTAL SCORE: 956 Bonus ------- Follower Combat Kills 95 Cogmind --------- Core Integrity 0/250 Matter 289/300 Energy 250/250 System Corruption 0% Temperature Cool (9) Movement Walking (260) Ox2 Location -10/Mines Parts ------- > --- POWER (1) -------- Ion Engine > --- PROPULSION (2) --- Aluminum Leg Aluminum Leg > --- UTILITY (2) ------ High-capacity Storage Unit Core Shielding > --- WEAPON (2) ------- Subdweller Beam Cannon Rocket Launcher > --- INVENTORY (20) --- Heat Sink Large Matter Pod (57) Seismic Detector Medium Laser Light Assault Rifle Light Assault Rifle Light Assault Rifle Light Assault Rifle Light Assault Rifle Light Assault Rifle Light Assault Rifle Light Cannon Mining Laser Hammer Peak State ------------ > --- POWER ------------ Ion Engine > --- PROPULSION ------- Aluminum Leg Aluminum Leg > --- UTILITY ---------- High-capacity Storage Unit Core Shielding > --- WEAPON ----------- Subdweller Beam Cannon Rocket Launcher > --- INVENTORY -------- Heat Sink Large Matter Pod Seismic Detector Medium Laser Light Assault Rifle Light Assault Rifle Light Assault Rifle Light Assault Rifle Light Assault Rifle Light Assault Rifle Light Assault Rifle Light Cannon Mining Laser Hammer [Rating: 10] Favorites ----------- Power Ion Engine Engine Ion Engine Propulsion Light Treads Treads Light Treads Leg Aluminum Leg Utility Seismic Detector Device Seismic Detector Storage High-capacity Storage Unit Protection Core Shielding Weapon Medium Laser Energy Gun Medium Laser Energy Cannon Subdweller Beam Cannon Ballistic Gun Assault Rifle Ballistic Cannon Light Cannon Launcher Rocket Launcher Build | -11 -10 -10 ------- Run | Yrd Mat Min Slots Evolved . | . . . Power . | . . . Propulsion . | . . . Utility . | . . . Weapon . | . . . Parts Attached 17 | 7 2 8 Power 3 | 1 1 1 Engine 3 | 1 1 1 Core . | . . . Reactor . | . . . Propulsion 5 | 2 . 3 Treads 3 | 2 . 1 Leg 2 | . . 2 Wheel . | . . . Hover . | . . . Flight . | . . . Utility 4 | 2 1 1 Device 1 | 1 . . Storage 2 | 1 1 . Processor . | . . . Hackware . | . . . Protection 1 | . . 1 Artifact . | . . . Weapon 5 | 2 . 3 Energy Gun 1 | 1 . . Energy Cannon 1 | . . 1 Ballistic Gun 1 | 1 . . Ballistic Cannon 1 | . . 1 Launcher 1 | . . 1 Special Weapon . | . . . Impact Weapon . | . . . Slashing Weapon . | . . . Piercing Weapon . | . . . Special Melee Weapon . | . . . Unidentified Prototypes . | . . . Parts Lost 7 | . . 7 Power 1 | . . 1 Propulsion 3 | . . 3 Utility 1 | . . 1 Weapon 2 | . . 2 Highest Loss Streak 6 | . . 6 To Critical Strikes . | . . . Average Backups 15 | 4 15 19 Power . | . 1 . Propulsion 3 | 3 3 2 Utility 2 | . 2 3 Weapon 9 | . 8 12 Tool/Special . | . . . Unused Backups 16 | . 3 13 Power . | . . . Propulsion 2 | . 2 . Utility 3 | . . 3 Weapon 11 | . 1 10 Tool/Special . | . . . Average Slot Usage (%) 99 | . 100 99 Engine 14 | . 14 14 Treads 27 | . 28 25 Device 13 | . 14 12 Storage 14 | . 14 14 Energy Gun 13 | . 14 12 Ballistic Gun 13 | . 14 12 Peak Build Rating 10 | 7 9 10 Average Rating 8 | 5 8 9 On Entrance 5 | . 7 9 Naked Turns . | . . . Heaviest Build 58 | 15 50 58 Greatest Support 40 | 40 40 40 Greatest Overweight (x) 2 | . 1 2 Average Overweight (x) . | . . 1 Largest Inventory Capacity 20 | 8 20 20 Average Capacity 16 | 7 16 20 Most Carried 20 | 7 20 20 Average Carried 15 | 4 15 19 Final Capacity 20 | 8 20 20 Final Carried 20 | 7 20 14 Class Distribution -------------------- 100% | Mutant Dominant Class ---------------- Mutant | -10/Materials Mutant | -10/Mines Resources | -11 -10 -10 ----------- Run | Yrd Mat Min Matter Collected 812 | 287 145 380 Remotely . | . . . Salvage Created 612 | 149 296 167 Parts 25 | 6 16 3 Haulers Intercepted 2 | . 2 . Recyclers Shooed 1 | 1 . . Parts Field Recycled . | . . . Retrieved Matter . | . . . Parts Self-Destructed . | . . . Prevented . | . . . Kills | -11 -10 -10 ------- Run | Yrd Mat Min Combat Hostiles Destroyed 30 | . 7 23 Guns 7 | . 7 . Cannons 1 | . . 1 AOE 20 | . . 20 Classes Destroyed 9 | 2 5 2 Tunneler 3 | 3 . . Hauler 2 | . 2 . Recycler 1 | 1 . . Watcher 1 | . 1 . Swarmer 4 | . 4 . Grunt 4 | . 2 2 Demolisher 1 | . . 1 Subdweller 1 | . 1 . Assembled 20 | . . 20 Best Kill Streak 21 | 2 3 21 Combat Bots Only 21 | . 2 21 Max Kills in Single Turn 3 | 1 1 3 Gunslinging . | . . . Exploded 3 | . . 3 Melee . | . . . Uniques/NPCs Destroyed . | . . . Combat | -11 -10 -10 -------- Run | Yrd Mat Min Hostile Shots Fired 85 | . 38 47 Missed 18 | . 6 12 Hits 67 | . 32 35 Projectile 67 | . 32 35 AOE 15 | . . 15 Critical Strikes 1 | . . 1 Damage Taken 1215 | . 329 886 Core 250 | . 49 201 Absorbed by Shields . | . . . Redirected to Shielding 26 | . . 26 Core Remaining (%) 100 | 100 . . Volleys Fired 80 | 16 33 31 Largest 2 | 2 2 2 Hottest 130 | 70 70 130 Shots Fired 143 | 32 66 45 Gun 122 | 32 66 24 Cannon 7 | . . 7 Launcher 14 | . . 14 Special . | . . . Kinetic 61 | 16 33 12 Thermal 68 | 16 33 19 Explosive 14 | . . 14 Electromagnetic . | . . . Robot Hit Streak 11 | 4 11 8 Robot Miss Streak 6 | 3 6 3 Penetration Max . | . . . Secondary Targets 1 | . 1 . Max Gunslinging Chain 1 | . 1 . Shots Hit Robots 80 | 17 37 26 Core Hits 58 | 5 14 39 Critical Kills 1 | . . 1 Critical Parts Destroyed 1 | . 1 . Critical Strikes 4 | . 1 3 Burn 2 | . . 2 Meltdown 1 | . . 1 Destroy 1 | . 1 . Melee Attacks . | . . . Impact . | . . . Slashing . | . . . Piercing . | . . . Sneak Attacks . | . . . Combat Hostiles . | . . . Follow-up Attacks . | . . . Damage Inflicted 2351 | 215 510 1626 Guns 898 | 215 498 185 Cannons 138 | . . 138 Explosions 1303 | . . 1303 Melee . | . . . Ramming 12 | . 12 . Kinetic 436 | 105 258 73 Thermal 600 | 110 240 250 Explosive 1303 | . . 1303 Electromagnetic . | . . . Impact . | . . . Slashing . | . . . Piercing . | . . . Highest Corruption . | . . . Average Corruption . | . . . Corruption Purged . | . . . Corruption Blocked . | . . . Overload Shots . | . . . Overflow Damage 34 | . . 34 Projectiles 21 | . . 21 Explosions 13 | . . 13 Melee . | . . . Knockbacks . | . . . Impact . | . . . Kinetic . | . . . Secondary . | . . . Self-Inflicted Damage 32 | . . 32 Shots 1 | . . 1 Rammed 3 | . 3 . Targets Rammed 3 | . 3 . Kicked . | . . . Crushed . | . . . Highest Temperature 206 | 45 138 206 Average Temperature 37 | 16 35 53 Received Heat Transfer 216 | . 84 132 Siege Activations . | . . . Martial Activations . | . . . Shielding Activations . | . . . Robots Disrupted . | . . . Combat Hostiles . | . . . Robots Corrupted . | . . . Combat Hostiles . | . . . Parts Fried . | . . . Impact Corruptions . | . . . Robots Melted 2 | . . 2 Combat Hostiles 2 | . . 2 Parts Melted 2 | . 1 1 Heat Transferred 1702 | 333 703 666 Parts Sabotaged . | . . . Parts Stolen . | . . . Parts Stripped . | . . . Power Chain Reactions . | . . . Alert | -11 -10 -10 ------- Run | Yrd Mat Min Maximum Alert Level . | . . . Low Security (%) 100 | 100 100 100 Level 1 . | . . . Level 2 . | . . . Level 3 . | . . . Level 4 . | . . . Level 5 . | . . . High Security . | . . . Max Security . | . . . Peak Influence 96 | 10 96 64 Initial 35 | . . 35 Average 8 | . 8 10 Influence Increases 519 | 20 289 210 Destroy 0b10 Robot/C 240 | . 120 120 Destroy 0b10 Robot/NC 35 | 20 15 . Destroy Leader 56 | . 26 30 Allied During Kill 16 | . . 16 Successful Hack 38 | . 38 . Select Force Hacks 60 | . 60 . Destroy Structure 44 | . . 44 Lose Combat Pursuer 30 | . 30 . Influence Decreases 455 | 20 197 238 Entered New Map 57 | . . 57 Time Decay 352 | 20 197 135 Lost Part 10 | . . 10 Lost Ally 36 | . . 36 Squads Dispatched 2 | . 2 . Investigation 2 | . 2 . Extermination . | . . . Reinforcement . | . . . Assault . | . . . Garrison . | . . . Intercept . | . . . Searches Triggered . | . . . Construction Impeded . | . . . Haulers Reinforced . | . . . Active Scanning Responses . | . . . Cargo Convoy Interrupts . | . . . Stealth | -11 -10 -10 --------- Run | Yrd Mat Min Distress Signals . | . . . Communications Jammed . | . . . Distress Signals . | . . . Times Spotted 47 | . 19 28 Peak Tracking Total 13 | . 4 13 Tactical Retreats 2 | . 2 . Traps | -11 -10 -10 ------- Run | Yrd Mat Min Traps Triggered . | . . . Indirectly . | . . . Trap Hack Attempts . | . . . Triggered . | . . . Disarmed . | . . . Reprogrammed . | . . . Reused . | . . . Traps Extracted . | . . . Installed . | . . . Triggered . | . . . Machines | -11 -10 -10 ---------- Run | Yrd Mat Min Machines Disabled . | . . . Max in Single Turn . | . . . Machines Repaired . | . . . Machines Dismantled . | . . . Machines Sabotaged . | . . . Overloaded Fab Kills . | . . . Hacking | -11 -10 -10 --------- Run | Yrd Mat Min Machines Accessed 10 | . 10 . Terminals 7 | . 7 . Fabricators . | . . . Repair Stations 1 | . 1 . Recycling Units 2 | . 2 . Scanalyzers . | . . . Garrison Access . | . . . Total Hacks 31 | . 31 . Successful 14 | . 14 . Failed 17 | . 17 . Catastrophic 2 | . 2 . Database Lockouts . | . . . Manual 21 | . 21 . Terminals 24 | . 24 . Fabricators . | . . . Repair Stations 3 | . 3 . Recycling Units 4 | . 4 . Scanalyzers . | . . . Garrison Access . | . . . Terminal Hacks 5 | . 5 . Robot Schematic 1 | . 1 . Robot Analysis 1 | . 1 . Prototype ID Bank 1 | . 1 . Terminal Index 1 | . 1 . Locate Traps 1 | . 1 . Fabricator Hacks . | . . . Repair Station Hacks 1 | . 1 . Scan Component 1 | . 1 . Recycling Unit Hacks . | . . . Scanalyzer . | . . . Garrison Access Hacks . | . . . Unauthorized Hacks 8 | . 8 . Terminals 6 | . 6 . Operators 1 | . 1 . Skim 5 | . 5 . Fabricators . | . . . Repair Stations . | . . . Recycling Units 2 | . 2 . Tunnel 2 | . 2 . Scanalyzers . | . . . Garrison Access . | . . . Data Cores Recovered . | . . . Used . | . . . Hacking Detections 9 | . 9 . Full Trace Events . | . . . Feedback Events . | . . . Feedback Blocked . | . . . Robot Schematics Acquired 1 | . 1 . Robots Built . | . . . Authchips . | . . . Time . | . . . Total Robot Build Rating . | . . . Part Schematics Acquired . | . . . Parts Built . | . . . Authchips . | . . . Time . | . . . Total Part Build Rating . | . . . Parts Repaired . | . . . Time . | . . . Parts Recycled . | . . . Recycled Matter . | . . . Retrieved Matter . | . . . Retrieved Components . | . . . Parts Scanalyzed . | . . . Part Schematics Acquired . | . . . Parts Damaged . | . . . Bothacking | -11 -10 -10 ------------ Run | Yrd Mat Min Used RIF Installer . | . . . Robots Hacked . | . . . Non-combat . | . . . Combat . | . . . Robot Hacks Applied . | . . . Relay Couplers Released . | . . . Fabnet Peak Effective % . | . . . Robots Rewired . | . . . Allies Hacked . | . . . Hacks Repelled . | . . . Allies | -11 -10 -10 -------- Run | Yrd Mat Min Total Allies 3 | . . 3 Largest Group 3 | . . 3 Highest-Rated Group 40 | . . 40 Highest-Rated Ally 16 | . . 16 Total Orders . | . . . Ally Attacks 20 | . . 20 Total Damage 216 | . . 216 Kills 3 | . . 3 Allies Corrupted . | . . . Allies Melted . | . . . Intel | -11 -10 -10 ------- Run | Yrd Mat Min Active Infowar (turns) 3655 | 14 2772 869 Seismic 3655 | 14 2772 869 Robot Analysis Total 1 | . 1 . Derelict Logs Recovered 2 | . . 2 Drone Launches . | . . . Drone Recoveries . | . . . Exploration | -11 -10 -10 ------------- Run | Yrd Mat Min Turns Passed 3937 | 176 2772 989 Spaces Moved 1661 | 72 1216 373 Core 3 | 3 . . Treads 1634 | 69 1216 349 Legs 24 | . . 24 Wheels . | . . . Hover . | . . . Flight . | . . . Fastest Speed 50 | 50 160 240 Average Speed 215 | 155 210 241 Slowest Speed 260 | 160 240 260 Overloaded Moves . | . . . Propulsion Burnouts . | . . . Robots Hopped . | . . . Potential Cave-ins . | . . . Cave-ins Triggered . | . . . Exploration Rate (%) 59 | 5 99 73 Regions Visited 2 Branch Regions 1 Pre-discovered Areas 3 | . 2 1 Known Exits Taken . | . . . Unknown Exits Taken 2 | 1 1 . Scrap Searched 1 | . . 1 Spaces Dug 32 | . . 32 Terrain Destroyed 103 | . . 103 Melee . | . . . Projectile 1 | . . 1 AOE 102 | . . 102 Terrain Rammed . | . . . Walls Destroyed . | . . . Machines Disabled . | . . . Actions | -11 -10 -10 --------- Run | Yrd Mat Min Total 1878 | 101 1360 417 Wait 84 | . 84 . Move 1659 | 71 1215 373 Hop . | . . . Pick Up 27 | 7 17 3 Fast Attach 7 | 7 . . Attach 7 | . . 7 Detach . | . . . Swap 3 | . 2 1 Drop 8 | . 6 2 Fire 80 | 16 33 31 Melee . | . . . Ram . | . . . Kick . | . . . Crush 3 | . 3 . Escape Stasis . | . . . Rewire . | . . . Trap . | . . . Miscellaneous . | . . . Route ------- -11/Scrapyard -10/Materials (discovered 6 exits: [*Mat x3] / [*Min x2] / [*Sub]) -10/Mines (discovered 2 exits: [*Mat] / [*Exi]) History --------- Turn | Location | Event 4 | -11/Scrapyard | Discovered new exit (range 15) 177 | -11/Scrapyard | Entered Materials 317 | -10/Materials | Build established: Mutant 357 | -10/Materials | Discovered new exit (range 16) 664 | -10/Materials | Discovered new exit (range 10) 777 | -10/Materials | Derelicts attacked the area 1172 | -10/Materials | Discovered new exit (range 4) 1291 | -10/Materials | Discovered new exit (range 8) 1703 | -10/Materials | Discovered new exit (range 9) 2068 | -10/Materials | Discovered new exit (range 12) 2106 | -10/Materials | Learned 2 Storage zone layouts 2193 | -10/Materials | Loaded intel: 12 trap records 2223 | -10/Materials | Learned Recycling recycling unit intel 2253 | -10/Materials | Learned location of 2 exits from Subcaves 2303 | -10/Materials | Learned location of 2 exits from Materials 2949 | -10/Materials | Entered Mines 2956 | -10/Mines | Received a Rocket Launcher from a helpful Derelict 3025 | -10/Mines | Learned location of Mines (-9) 3069 | -10/Mines | Assisted by bots powering up and referring to "LRC-V3" 3300 | -10/Mines | Deemed a non-threat by the Exiles lab entrance 3303 | -10/Mines | Discovered new exit (range 5) 3799 | -10/Mines | Assembled infested the area 3827 | -10/Mines | Core integrity fell below 50% 3835 | -10/Mines | Core integrity fell below 20% 3852 | -10/Mines | Lost 3 allies 3863 | -10/Mines | Lost 6 parts (3n1u2w) 3897 | -10/Mines | Destroyed 21 combat bots 3915 | -10/Mines | Learned Materials machine intel 3918 | -10/Mines | Discovered new exit (range 14) 3938 | -10/Mines | Destroyed by G-47 Trooper with Particle Gun Last Messages --------------- 03878_ Acquired Lrg. Matter Pod. 03879_ The unstable cave ceiling collapses. 03879_ U-05 Engineer lays Concrete. 03880_ The unstable cave ceiling collapses. 03880_ U-05 Engineer lays Concrete. 03882_ U-05 Engineer builds a Wall. 03882_ U-05 Engineer lays Concrete. 03885_ The unstable cave ceiling collapses. 03886_ U-05 Engineer lays Concrete. 03889_ U-05 Engineer builds a Wall. 03889_ Acquired 47 matter. 03890_ U-05 Engineer lays Concrete. 03900_ Acquired 116 matter. 03900_ U-05 Engineer lays Concrete. 03902_ U-05 Engineer builds a Wall. 03902_ U-05 Engineer lays Concrete. 03915_ Acquired derelict log, extracted data. Data stored: Materials machine intel. 03918_ EXIT=FOUND 03933_ G-34 Mercenary destroyed. Map ----- +----------------------------------------------------+ | ????????????????????????????????? | | ????????????????????????????????? | | ????????????????????????????????? | | ????????????????????????????????? | | ????????????????????????????????? | | ????????????????????????????????? | | ????????????????????????????????? | | ????????????????????????????????? | | ????????????????????????????????? | | ????????????????????????????????? | | ??????????????????????? ????????? | | ??????????????????????? ????????? | | ??????????????????????? ##??????? | | ??????????????????????? #?????? | | ??????????????????????? ?????? | | ??????????????????????? % ?????? | | ????????????????????????< ?????? | | ???????????????????????? ?????? | | ???????????????????????? ?????? | | ???????????????????????? ?????? | | #### ???????????????? ?????? | | ???????????????? g#?????? | | ????????????????# #?????? | | #?? ?????????????????# #?????? | | ??? ?????????????????# #?????? | | ???# ????????????????#@#?????? | | ???# ???????????????# #?????? | | ???# #??????????????# #?????? | | ????# #########?????# #?????? | | ##????# ####### #?????? | | ##????# #?????? | | #####???# " #?????? | | ##??## " ########?????? | | #???## = "#????????????? | | ###### ##????????????? | | ### ### #?????????????? | | ??## #?????????????? | | ???## [ #?????????????? | | ???## ##?????????????? | | ???## ##??????????????? | | ???# ##???????????????? | | ???# #????????????????? | | #### # #???????????????? | | ## # # ??????????????? | | " ### # #?????????????? | | " #?## # # ????????????? | | " #??#### #???????????? | | ??????# ???????????? | | ##?????? ??????????? | | ????????# ?????????? | +----------------------------------------------------+ Best States ------------- Heat Dissipation 25 Energy Generation 10 Energy Capacity 250 Matter Stores 300 Matter Capacity 300 Sight Range 16 Terrain Scan Density 10 Core Shielding 20 Evasion (%) 40 Recoil Reduction 2 Item Schematics ----------------- None Robot Schematics ------------------ M-13 Machinist | -10/Materials | Hacked Fabricated ------------ Nothing Repaired ---------- Nothing Alien Tech Used ----------------- None Achievements -------------- None Challenges ------------ None Game ------ Seed ElectronLinearScreen Manual? 0 Play Time 00:13:38 Cumulative 964.5 hours Start 2025.06.25 @ 00:17:01 End 2025.06.25 @ 00:30:40 Sessions 1 Manual Loads 0 Difficulty Rogue Special Mode None Game No. 496 Rogue 496 Adventurer 0 Explorer 0 Win Type - Total 23 Types 10/4/3/0/1/1/2/2/0/0 Lore% 85 Gallery% 87 Achievement% 83 Wizard Run 0 Options --------- Layout 0 ASCII 0 Keyboard 0 Movement Numpad Keybinds 0 Fullscreen 2 Font 24/Smallcaps Map View 76x50 Zoom Use 0% Tactical HUD 1 Map Filters NONE Filters SHIFT_HUE(315) Steam 1 RUN: 3dc158fb-3898-4fb8-abf2-91c94cb724d0